fUST/lending_fUST_20250429
["ID","MTS","AMOUNT","RATE_DAILY","PERIOD"]
[359242932,1745860209724,-1297.2068085,0.00021904,2]
[359242933,1745860209756,-1297.2068085,0.00021904,2]
[359242934,1745860209788,-1297.2068085,0.00021904,2]
[359242935,1745860209819,-1297.2068085,0.00021904,2]
[359242936,1745860209849,-1297.2068085,0.00021904,2]
[359242937,1745860209879,-1297.2068085,0.00021904,2]
[359242938,1745860209911,-1297.2068085,0.00021904,2]
[359242939,1745860209941,-1297.2068085,0.00021904,2]
[359242940,1745860209972,-1297.2068085,0.00021904,2]
[359242941,1745860210003,-1297.2068085,0.00021904,2]
[359242942,1745860210033,-1297.2068085,0.00021904,2]
[359242943,1745860210064,-1391.15890512,0.00021904,2]
[359242944,1745860210098,-1391.15890512,0.00021904,2]
[359242945,1745860210131,-1391.15890512,0.00021904,2]
[359242946,1745860210165,-1391.15890512,0.00021904,2]
[359242947,1745860210201,-1391.15890512,0.00021904,2]
[359242948,1745860210231,-1391.15890512,0.00021904,2]
[359242949,1745860210261,-1391.15890512,0.00021904,2]
[359242950,1745860210292,-1391.15890512,0.00021904,2]
[359242951,1745860210321,-1391.15890512,0.00021904,2]
[359242952,1745860210351,-1391.15890512,0.00021904,2]
[359242953,1745860210380,-1391.15890512,0.00021904,2]
[359242954,1745860210409,-1391.15890512,0.00021904,2]
[359242955,1745860210440,-1391.15890512,0.00021904,2]
[359242956,1745860210471,-1391.15890512,0.00021904,2]
[359242957,1745860210501,-1391.15890512,0.00021904,2]
[359242958,1745860210531,-1391.15890512,0.00021904,2]
[359242959,1745860210561,-1391.15890512,0.00021904,2]
[359242960,1745860210596,-1391.15890512,0.00021904,2]
[359242961,1745860210628,-1391.15890512,0.00021904,2]
[359242962,1745860210660,-1391.15890512,0.00021904,2]
[359242963,1745860210692,-1391.15890512,0.00021904,2]
[359242964,1745860210721,-1391.15890512,0.00021904,2]
[359242965,1745860210752,-1391.15890512,0.00021904,2]
[359242966,1745860210782,-1391.15890512,0.00021904,2]
[359242967,1745860210813,-1391.15890512,0.00021904,2]
[359242968,1745860210845,-1391.15890512,0.00021904,2]
[359242969,1745860210877,-1391.15890512,0.00021904,2]
[359242970,1745860210911,-1391.15890512,0.00021904,2]
[359242971,1745860210941,-1391.1589051,0.00021904,2]
[359242972,1745860210973,-1391.1589051,0.00021904,2]
[359242973,1745860211004,-1391.1589051,0.00021904,2]
[359242974,1745860211039,-1391.1589051,0.00021904,2]
[359242975,1745860211072,-1391.1589051,0.00021904,2]
[359242976,1745860211102,-1391.1589051,0.00021904,2]
[359242977,1745860211132,-1391.1589051,0.00021904,2]
[359242978,1745860211166,-1391.1589051,0.00021904,2]
[359242979,1745860211189,-157.45,0.00021906,2]
[359242980,1745860211218,-500.0,0.00021913,2]
[359242981,1745860211243,-160.0,0.00021917,2]
[359242982,1745860211268,-440.4,0.00021917,2]
[359242983,1745860211297,-414.03,0.00021917,2]
[359242984,1745860211320,-400.0,0.00021917,2]
[359242985,1745860211344,-475.4,0.00021917,2]
[359242986,1745860211368,-209.0,0.00021917,2]
[359242987,1745860211392,-400.0,0.00021917,2]
[359242988,1745860211416,-400.0,0.00021917,2]
[359242989,1745860211441,-353.22157773,0.00021917,2]
[359242990,1745860211466,-503.93,0.00021917,2]
[359242991,1745860211490,-400.0,0.00021917,2]
[359242992,1745860211516,-400.0,0.00021917,2]
[359242993,1745860211540,-400.0,0.00021917,2]
[359242994,1745860211563,-400.0,0.00021917,2]
[359242995,1745860211588,-400.0,0.00021917,2]
[359242996,1745860211613,-400.0,0.00021917,2]
[359242997,1745860211639,-400.0,0.00021917,2]
[359242998,1745860211668,-400.0,0.00021917,2]
[359242999,1745860211702,-400.0,0.00021917,2]
[359243000,1745860211732,-400.0,0.00021917,2]
[359243001,1745860211762,-400.0,0.00021917,2]
[359243002,1745860211792,-400.0,0.00021917,2]
[359243003,1745860211816,-400.0,0.00021917,2]
[359243004,1745860211859,-400.0,0.00021917,2]
[359243005,1745860211895,-400.0,0.00021917,2]
[359243006,1745860211924,-400.0,0.00021917,2]
[359243007,1745860211963,-400.0,0.00021917,2]
[359243008,1745860211988,-361.08979097,0.00021917,2]
[359243009,1745860212032,-400.0,0.00021917,2]
[359243010,1745860212056,-400.0,0.00021917,2]
[359243011,1745860212080,-400.0,0.00021917,2]
[359243012,1745860212103,-400.0,0.00021917,2]
[359243013,1745860212127,-400.0,0.00021917,2]
[359243014,1745860212150,-400.0,0.00021917,2]
[359243015,1745860212174,-400.0,0.00021917,2]
[359243016,1745860212205,-400.0,0.00021917,2]
[359243017,1745860212233,-400.0,0.00021917,2]
[359243018,1745860212260,-400.0,0.00021917,2]
[359243019,1745860212284,-400.0,0.00021917,2]
[359243020,1745860212311,-400.0,0.00021917,2]
[359243021,1745860212334,-400.0,0.00021917,2]
[359243022,1745860212358,-400.0,0.00021917,2]
[359243023,1745860212385,-390.9428858,0.00021917,2]
[359243024,1745860212414,-400.0,0.00021917,2]
[359243025,1745860212451,-400.0,0.00021917,2]
[359243026,1745860212494,-400.0,0.00021917,2]
[359243027,1745860212517,-400.0,0.00021917,2]
[359243028,1745860212559,-400.0,0.00021917,2]
[359243029,1745860212601,-400.0,0.00021917,2]
[359243030,1745860212625,-400.0,0.00021917,2]
[359243031,1745860212649,-400.0,0.00021917,2]
[359243032,1745860212673,-400.0,0.00021917,2]
[359243033,1745860212696,-400.0,0.00021917,2]
[359243034,1745860212719,-400.0,0.00021917,2]
[359243035,1745860212741,-400.0,0.00021917,2]
[359243036,1745860212765,-400.0,0.00021917,2]
[359243037,1745860212787,-400.0,0.00021917,2]
[359243038,1745860212809,-400.0,0.00021917,2]
[359243039,1745860212832,-414.08,0.00021917,2]
[359243040,1745860212856,-400.0,0.00021917,2]
[359243041,1745860212879,-400.0,0.00021917,2]
[359243042,1745860212901,-400.0,0.00021917,2]
[359243043,1745860212924,-400.0,0.00021917,2]
[359243044,1745860212946,-400.0,0.00021917,2]
[359243045,1745860213121,-400.0,0.00021917,2]
[359243046,1745860213146,-400.0,0.00021917,2]
[359243047,1745860213171,-400.0,0.00021917,2]
[359243048,1745860213196,-400.0,0.00021917,2]
[359243049,1745860213221,-400.0,0.00021917,2]
[359243050,1745860213245,-400.0,0.00021917,2]
[359243051,1745860213271,-400.0,0.00021917,2]
[359243052,1745860213295,-400.0,0.00021917,2]
[359243053,1745860213318,-400.0,0.00021917,2]
[359243054,1745860213341,-400.0,0.00021917,2]
[359243055,1745860213364,-400.0,0.00021917,2]
[359243056,1745860213388,-400.0,0.00021917,2]
[359243057,1745860213411,-400.0,0.00021917,2]
[359243058,1745860213434,-400.0,0.00021917,2]
[359243059,1745860213456,-400.0,0.00021917,2]
[359243060,1745860213480,-400.0,0.00021917,2]
[359243061,1745860213504,-400.0,0.00021917,2]
[359243062,1745860213531,-400.0,0.00021917,2]
[359243063,1745860213558,-400.0,0.00021917,2]
[359243064,1745860213583,-400.0,0.00021917,2]
[359243065,1745860213607,-400.0,0.00021917,2]
[359243066,1745860213632,-400.0,0.00021917,2]
[359243067,1745860213655,-400.0,0.00021917,2]
[359243068,1745860213679,-400.0,0.00021917,2]
[359243069,1745860213705,-400.0,0.00021917,2]
[359243070,1745860213729,-400.0,0.00021917,2]
[359243071,1745860213753,-518.55,0.00021917,2]
[359243072,1745860213779,-400.0,0.00021917,2]
[359243073,1745860213803,-400.0,0.00021917,2]
[359243074,1745860213828,-151.84851982,0.00021917,2]
[359243075,1745860213853,-400.0,0.00021917,2]
[359243076,1745860213883,-400.0,0.00021917,2]
[359243077,1745860213917,-400.0,0.00021917,2]
[359243078,1745860213941,-400.0,0.00021917,2]
[359243079,1745860213967,-400.0,0.00021917,2]
[359243080,1745860213992,-400.0,0.00021917,2]
[359243081,1745860214018,-400.0,0.00021917,2]
[359243082,1745860214043,-462.61,0.00021917,2]
[359243083,1745860214067,-400.0,0.00021917,2]
[359243084,1745860214091,-400.0,0.00021917,2]
[359243085,1745860214115,-162.21302765,0.00021918,2]
[359243086,1745860214139,-500.0,0.00021973,2]
[359243087,1745860214162,-285.2342227,0.00021973,2]
[359243088,1745860214186,-507.68983846,0.00021973,2]
[359243089,1745860214213,-500.0,0.00021973,2]
[359243090,1745860214236,-500.0,0.00021973,2]
[359243091,1745860214261,-500.0,0.00021973,2]
[359243092,1745860214286,-500.0,0.00021973,2]
[359243093,1745860214310,-500.0,0.00021973,2]
[359243094,1745860214333,-500.0,0.00021973,2]
[359243095,1745860214357,-500.0,0.00021973,2]
[359243096,1745860214382,-500.0,0.00021973,2]
[359243097,1745860214408,-500.0,0.00021973,2]
[359243098,1745860214433,-500.0,0.00021973,2]
[359243099,1745860214458,-500.0,0.00021973,2]
[359243100,1745860214484,-500.0,0.00021973,2]
[359243101,1745860214511,-500.0,0.00021973,2]
[359243102,1745860214535,-300.0,0.00021973,2]
[359243103,1745860214562,-462.48960929,0.00022191,2]
[359243104,1745860214586,-400.0,0.00022191,2]
[359243105,1745860214611,-400.0,0.00022191,2]
[359243106,1745860214636,-315.11,0.00022191,2]
[359243107,1745860214660,-331.55711477,0.00022191,2]
[359243108,1745860214684,-400.0,0.00022191,2]
[359243109,1745860214708,-400.0,0.00022191,2]
[359243110,1745860214732,-400.0,0.00022191,2]
[359243111,1745860214759,-400.0,0.00022191,2]
[359243112,1745860214784,-238.83648979,0.00022191,2]
[359243113,1745860214808,-400.0,0.00022191,2]
[359243114,1745860214832,-206.17,0.00022191,2]
[359243115,1745860214856,-400.0,0.00022191,2]
[359243116,1745860214880,-282.21,0.00022191,2]
[359243117,1745860214904,-446.67,0.00022191,2]
[359243118,1745860214928,-400.0,0.00022191,2]
[359243119,1745860214952,-400.0,0.00022191,2]
[359243120,1745860214975,-400.0,0.00022191,2]
[359243121,1745860214997,-400.0,0.00022191,2]
[359243122,1745860215021,-400.0,0.00022191,2]
[359243123,1745860215049,-400.0,0.00022191,2]
[359243124,1745860215073,-462.61,0.00022191,2]
[359243125,1745860215096,-400.0,0.00022465,2]
[359243126,1745860215119,-200.49772336,0.00022465,2]
[359243127,1745860215142,-482.16,0.00022465,2]
[359243128,1745860215164,-410.99,0.00022465,2]
[359243129,1745860215187,-346.3631167,0.00022465,2]
[359243130,1745860215216,-400.0,0.00022465,2]
[359243131,1745860215240,-400.0,0.00022465,2]
[359243132,1745860215267,-150.55,0.00022465,2]
[359243133,1745860215291,-400.0,0.00022465,2]
[359243134,1745860215316,-400.0,0.00022465,2]
[359243135,1745860215338,-400.0,0.00022465,2]
[359243136,1745860215361,-400.0,0.00022465,2]
[359243137,1745860215384,-400.0,0.00022465,2]
[359243138,1745860215408,-400.0,0.00022465,2]
[359243139,1745860215432,-462.61,0.00022465,2]
[359243140,1745860215456,-150.0,0.000227,2]
[359243141,1745860215479,-400.0,0.00022739,2]
[359243142,1745860215502,-400.0,0.00022739,2]
[359243143,1745860215528,-400.0,0.00022739,2]
[359243144,1745860215552,-400.0,0.00022739,2]
[359243145,1745860215577,-400.0,0.00022739,2]
[359243146,1745860215599,-400.0,0.00022739,2]
[359243147,1745860215624,-400.0,0.00022739,2]
[359243148,1745860215647,-400.0,0.00022739,2]
[359243149,1745860215671,-400.0,0.00022739,2]
[359243150,1745860215695,-462.61,0.00022739,2]
[359243151,1745860215719,-160.0,0.00022899,2]
[359243152,1745860215741,-840.59878455,0.00022899,2]
[359243153,1745860215766,-160.0,0.00022899,2]
[359243154,1745860215789,-421.20781996,0.00022899,2]
[359243155,1745860215813,-160.0,0.00022899,2]
[359243156,1745860215839,-318.80060415,0.000229,4]
[359243157,1745860215862,-402.58,0.00023013,2]
[359243158,1745860215886,-400.0,0.00023013,2]
[359243159,1745860215912,-400.0,0.00023013,2]
[359243160,1745860215937,-400.0,0.00023013,2]
[359243161,1745860215962,-400.0,0.00023013,2]
[359243162,1745860215986,-400.0,0.00023013,2]
[359243163,1745860216010,-400.0,0.00023013,2]
[359243164,1745860216034,-400.0,0.00023013,2]
[359243165,1745860216060,-173.08092099,0.00023013,2]
[359243166,1745860216086,-462.61,0.00023013,2]
[359243167,1745860216110,-160.0,0.00023287,2]
[359243168,1745860216136,-400.0,0.00023287,2]
[359243169,1745860216160,-400.0,0.00023287,2]
[359243170,1745860216187,-400.0,0.00023287,2]
[359243171,1745860216214,-400.0,0.00023287,2]
[359243172,1745860216238,-400.0,0.00023287,2]
[359243173,1745860216263,-400.0,0.00023287,2]
[359243174,1745860216289,-400.0,0.00023287,2]
[359243175,1745860216314,-462.61,0.00023287,2]
[359243176,1745860216341,-318.80060404,0.00023486,4]
[359243177,1745860216490,-706.0,0.00023514,2]
[359243178,1745860216516,-2245.0,0.00023514,2]
[359243179,1745860216541,-403.0,0.00023514,2]
[359243180,1745860216565,-400.0,0.00023561,2]
[359243181,1745860216590,-400.0,0.00023561,2]
[359243182,1745860216615,-400.0,0.00023561,2]
[359243183,1745860216641,-400.0,0.00023561,2]
[359243184,1745860216665,-400.0,0.00023561,2]
[359243185,1745860216689,-154.16857558,0.00023561,2]
[359243186,1745860216714,-400.0,0.00023561,2]
[359243187,1745860216740,-462.61,0.00023561,2]
[359243188,1745860216766,-600.0,0.00023616,2]
[359243189,1745860216790,-420.0,0.00023803,2]
[359243190,1745860216814,-400.0,0.00023835,2]
[359243191,1745860216839,-400.0,0.00023835,2]
[359243192,1745860216863,-400.0,0.00023835,2]
[359243193,1745860216888,-400.0,0.00023835,2]
[359243194,1745860216911,-354.42035949,0.00023835,2]
[359243195,1745860216934,-400.0,0.00023835,2]
[359243196,1745860216960,-462.61,0.00023835,2]
[359243197,1745860216984,-213.74340772,0.00023838,2]
[359243198,1745860217006,-167.2064928,0.00023886,2]
[359243199,1745860217033,-318.80060404,0.00024072,5]
[359243200,1745860217056,-400.0,0.00024109,2]
[359243201,1745860217079,-400.0,0.00024109,2]
[359243202,1745860217104,-400.0,0.00024109,2]
[359243203,1745860217128,-400.0,0.00024109,2]
[359243204,1745860217151,-400.0,0.00024109,2]
[359243205,1745860217177,-462.61,0.00024109,2]
[359243206,1745860217205,-500.0,0.000242,2]
[359243207,1745860217248,-500.0,0.00024288,2]
[359243208,1745860217270,-390.96430664,0.00024288,2]
[359243209,1745860217295,-400.0,0.00024383,2]
[359243210,1745860217318,-400.0,0.00024383,2]
[359243211,1745860217342,-400.0,0.00024383,2]
[359243212,1745860217367,-400.0,0.00024383,2]
[359243213,1745860217390,-400.0,0.00024383,2]
[359243214,1745860217413,-462.61,0.00024383,2]
[359243215,1745860217439,-350.794,0.00024632,7]
[359243216,1745860217462,-400.0,0.00024657,2]
[359243217,1745860217486,-482.38152285,0.00024657,2]
[359243218,1745860217512,-524.96225948,0.00024657,2]
[359243219,1745860217537,-400.0,0.00024657,2]
[359243220,1745860217562,-400.0,0.00024657,2]
[359243221,1745860217586,-462.61,0.00024657,2]
[359243222,1745860217613,-318.80060404,0.00024659,5]
[359243223,1745860217636,-45090.8251166,0.000249,2]
[359243224,1745860217660,-434.76,0.00024931,2]
[359243225,1745860217684,-400.0,0.00024931,2]
[359243226,1745860217707,-242.22247302,0.00024931,2]
[359243227,1745860217730,-462.61,0.00024931,2]
[359243228,1745860217754,-400.0,0.00025205,2]
[359243229,1745860217780,-462.61,0.00025205,2]
[359243230,1745860217805,-318.80060404,0.00025245,5]
[359243231,1745860217828,-900.0,0.0002526,2]
[359243232,1745860217852,-400.0,0.00025479,2]
[359243233,1745860217876,-462.61,0.00025479,2]
[359243234,1745860217901,-400.0,0.00025753,2]
[359243235,1745860217925,-462.61,0.00025753,2]
[359243236,1745860217950,-318.80060404,0.00025831,6]
[359243237,1745860217973,-213.74340772,0.00025859,2]
[359243238,1745860217996,-587.0,0.00025869,2]
[359243239,1745860218021,-400.0,0.00026027,2]
[359243240,1745860218045,-462.61,0.00026027,2]
[359243241,1745860218069,-951.0,0.000261,2]
[359243242,1745860218092,-1699.21195366,0.00026119,2]
[359243243,1745860218117,-316.25728942,0.00026301,2]
[359243244,1745860218143,-462.61,0.00026301,2]
[359243245,1745860218170,-318.80060404,0.00026417,6]
[359243246,1745860218206,-634.014,0.00026514,2]
[359243247,1745860218235,-403.0,0.00026514,2]
[359243248,1745860218263,-462.61,0.00026575,2]
[359243249,1745860218296,-462.61,0.00026849,2]
[359243250,1745860218322,-313.28589057,0.00027,3]
[359243251,1745860218350,-318.80060404,0.00027003,7]
[359243252,1745860218376,-462.61,0.00027123,2]
[359243253,1745860218399,-151.0,0.00027397,2]
[359243254,1745860218427,-151.0,0.00027397,2]
[359243255,1745860218452,-462.61,0.00027397,2]
[359243256,1745860218477,-500.0,0.00027397,120]
[359243257,1745860218500,-500.0,0.00027397,120]
[359243258,1745860218522,-500.0,0.00027397,2]
[359243259,1745860218545,-500.0,0.00027397,2]
[359243260,1745860218567,-785.452735,0.00027397,2]
[359243261,1745860218590,-250.990776,0.00027397,120]
[359243262,1745860218613,-15030.2750389,0.00027442,2]
[359243263,1745860218635,-151.0,0.00027452,2]
[359243264,1745860218658,-1000.0,0.00027452,5]
[359243265,1745860218689,-1000.0,0.00027452,5]
[359243266,1745860218719,-692.04611337,0.00027452,5]
[359243267,1745860218749,-1000.0,0.00027452,5]
[359243268,1745860218777,-334.55762594,0.00027452,5]
[359243269,1745860218804,-1000.0,0.00027452,5]
[359243270,1745860218834,-1000.0,0.00027452,5]
[359243271,1745860218863,-500.0,0.00027452,5]
[359243272,1745860218891,-151.0,0.00027507,2]
[359243273,1745860218923,-318.80060404,0.0002759,7]
[359243274,1745860218954,-462.61,0.00027671,2]
[359243275,1745860218984,-213.74340772,0.00027879,2]
[359243276,1745860219015,-462.61,0.00027945,2]
[359243277,1745860219044,-570.0,0.00028114,2]
[359243278,1745860219072,-318.80060404,0.00028176,7]
[359243279,1745860219100,-462.80702951,0.00028219,2]
[359243280,1745860219128,-1773.4676879,0.00028369,4]
[359243281,1745860219157,-318.80060404,0.00028762,8]
[359243282,1745860219183,-2285.38747947,0.00029,7]
[359243283,1745860219212,-2285.38747947,0.00029,7]
[359243284,1745860219242,-1219276.107286,0.00029,2]
[359243285,1745860219269,-1558.23805296,0.00029308,2]
[359243286,1745860219302,-800.0,0.00029338,2]
[359243287,1745860219328,-800.0,0.00029341,2]
[359243288,1745860219354,-318.80060404,0.00029348,8]
[359243289,1745860219380,-800.0,0.00029394,2]
[359243290,1745860219405,-800.0,0.00029408,2]
[359243291,1745860219432,-800.0,0.00029408,2]
[359243292,1745860219458,-800.0,0.00029424,2]
[359243293,1745860219484,-800.0,0.00029427,2]
[359243294,1745860219511,-800.0,0.00029453,2]
[359243295,1745860219538,-800.0,0.00029459,2]
[359243296,1745860219565,-403.0,0.00029514,2]
[359243297,1745860219593,-661.89631532,0.00029547,2]
[359243298,1745860219622,-800.0,0.00029562,2]
[359243299,1745860219648,-800.0,0.0002957,2]
[359243300,1745860219673,-800.0,0.00029585,2]
[359243301,1745860219697,-800.0,0.00029601,2]
[359243302,1745860219722,-800.0,0.00029608,2]
[359243303,1745860219748,-419.98715,0.0002963,15]
[359243304,1745860219776,-800.0,0.00029632,2]
[359243305,1745860219802,-800.0,0.00029646,2]
[359243306,1745860219829,-800.0,0.00029652,2]
[359243307,1745860219853,-1000.0,0.00029679,5]
[359243308,1745860219878,-1000.0,0.00029767,5]
[359243309,1745860219904,-160.0,0.000299,31]
[359243310,1745860219929,-213.74340772,0.000299,2]
[359243311,1745860219957,-318.80060404,0.00029934,9]
[359243312,1745860219982,-30060.5500777,0.0002998,2]
[359243313,1745860220007,-71945.75274406,0.0002999,15]
[359243314,1745860220033,-359.0,0.0002999,7]
[359243315,1745860220058,-135272.47535,0.0002999,2]
[359243316,1745860220083,-3900.0,0.0003,90]
[359243317,1745860220107,-2000.0,0.0003,120]
[359243318,1745860220131,-877269.33814628,0.0003,90]
[359243319,1745860220156,-19009.48442168,0.0003,60]
[359243320,1745860220182,-160.0,0.0003,32]
[359243321,1745860220210,-9551.88690188,0.0003,2]
[359243322,1745860220236,-245.77307496,0.0003,14]
[359243323,1745860220344,500.0,0.00027397,120]
[359243324,1745860220381,500.0,0.00027397,120]
[359243325,1745860220417,500.0,0.00027397,120]
[359243326,1745860220451,24900.0,0.00021,2]
[359243327,1745860220479,512.37991936,0.00027397,120]
[359243328,1745860220643,837.5,0.0002963,15]
[359243329,1745860226212,420.5,0.0002963,15]
[359243363,1745860232217,-156.13666017,0.00030091,10]
[359243364,1745860232227,-10510.31,0.00030136,2]
[359243365,1745860232237,-151.0,0.00030137,2]
[359243367,1745860232443,-151.0,0.00030192,2]
[359243368,1745860232452,-151.0,0.00030247,2]
[359243369,1745860232461,-207.16530708,0.00030301,2]
[359243370,1745860232470,-10510.31,0.0003041,2]
[359243371,1745860232480,-153.0,0.00030411,30]
[359243372,1745860232488,-318.80060404,0.00030521,9]
[359243373,1745860232497,-10510.31,0.00030684,2]
[359243374,1745860232506,-2000.0,0.00030685,120]
[359243375,1745860232515,-160.0,0.000309,34]
[359243376,1745860232524,-10510.53666391,0.00030958,2]
[359243377,1745860232533,-334.0,0.00031,120]
[359243378,1745860232543,-160.0,0.00031,34]
[359243379,1745860232552,-318.80060404,0.00031107,9]
[359243380,1745860232561,-1699.21195366,0.00031119,2]
[359243381,1745860232570,-2000.0,0.00031233,120]
[359243382,1745860232579,-179.82017982,0.00031613,7]
[359243383,1745860232589,-318.80060404,0.00031693,10]
[359243384,1745860232598,-2000.0,0.00031781,120]
[359243385,1745860232607,-153.0,0.00031834,30]
[359243386,1745860232616,-153.0,0.00031834,30]
[359243387,1745860232625,-153.0,0.00031834,30]
[359243388,1745860232635,-153.0,0.00031834,30]
[359243389,1745860232644,-153.0,0.00031834,30]
[359243390,1745860232653,-153.0,0.00031834,30]
[359243391,1745860232663,-153.0,0.00031834,30]
[359243392,1745860232672,-153.0,0.00031834,30]
[359243393,1745860232681,-160.0,0.000319,37]
[359243394,1745860232690,-250.990776,0.00031963,120]
[359243395,1745860232699,-1210.92,0.00032,2]
[359243396,1745860232709,-222.25,0.00032,37]
[359243397,1745860232717,-318.80060404,0.00032279,10]
[359243398,1745860232726,-2000.0,0.00032329,120]
[359243399,1745860232735,-153.0,0.00032656,30]
[359243400,1745860232744,-153.0,0.00032656,30]
[359243401,1745860232753,-153.0,0.00032656,30]
[359243402,1745860232762,-153.0,0.00032656,30]
[359243403,1745860232771,-153.0,0.00032656,30]
[359243404,1745860232781,-153.0,0.00032656,30]
[359243405,1745860232790,-153.0,0.00032656,30]
[359243406,1745860232799,-153.0,0.00032656,30]
[359243407,1745860232808,-153.0,0.00032656,30]
[359243408,1745860232818,-153.0,0.00032656,30]
[359243409,1745860232827,-153.0,0.00032656,30]
[359243410,1745860232837,-153.0,0.00032656,30]
[359243411,1745860232846,-297.1510803,0.00032656,30]
[359243412,1745860232856,-405.5796153,0.00032656,30]
[359243413,1745860232865,-318.80060404,0.00032866,10]
[359243414,1745860232875,-300.0,0.00032876,30]
[359243415,1745860232884,-300.0,0.00032876,30]
[359243416,1745860232893,-300.0,0.00032876,30]
[359243417,1745860232902,-300.0,0.00032876,30]
[359243418,1745860232911,-300.0,0.00032876,30]
[359243419,1745860232918,-300.0,0.00032876,30]
[359243420,1745860232927,-300.0,0.00032876,30]
[359243421,1745860232936,-300.0,0.00032876,30]
[359243422,1745860232946,-300.0,0.00032876,30]
[359243423,1745860232955,-300.0,0.00032876,30]
[359243424,1745860232964,-300.0,0.00032876,30]
[359243425,1745860232974,-445.19979243,0.00032876,30]
[359243426,1745860232984,-500.0,0.00032876,120]
[359243427,1745860232993,-500.0,0.00032876,120]
[359243428,1745860233002,-500.0,0.00032876,120]
[359243429,1745860233012,-500.0,0.00032876,120]
[359243430,1745860233021,-611.75065938,0.00032876,120]
[359243431,1745860233031,-1000.0,0.00032876,20]
[359243432,1745860233040,-1000.0,0.00032876,20]
[359243433,1745860233050,-1000.0,0.00032876,20]
[359243434,1745860233060,-1000.0,0.00032876,20]
[359243435,1745860233070,-1000.0,0.00032876,20]
[359243436,1745860233080,-1000.0,0.00032876,20]
[359243437,1745860233089,-1000.0,0.00032876,20]
[359243438,1745860233099,-1000.0,0.00032876,20]
[359243439,1745860233108,-1000.0,0.00032876,20]
[359243440,1745860233117,-1000.0,0.00032876,20]
[359243441,1745860233127,-1000.0,0.00032876,20]
[359243442,1745860233136,-1000.0,0.00032876,20]
[359243443,1745860233145,-685.67810494,0.00032876,20]
[359243444,1745860233154,-2000.0,0.00032877,120]
[359243445,1745860233163,-160.0,0.000329,40]
[359243446,1745860233173,-500.0,0.00033,120]
[359243447,1745860233182,-160.0,0.00033,120]
[359243448,1745860233192,-313.28589057,0.00033,120]
[359243449,1745860233203,-6599.38082963,0.0003315,30]
[359243450,1745860233212,-785.452735,0.00033165,2]
[359243451,1745860233222,-2000.0,0.00033425,120]
[359243452,1745860233232,-2000.0,0.00033425,120]
[359243453,1745860233243,-318.80060404,0.00033452,11]
[359243454,1745860233252,-1000.0,0.00033699,120]
[359243455,1745860233262,-160.0,0.000339,43]
[359243456,1745860233272,-2000.0,0.00033973,120]
[359243457,1745860233282,-2000.0,0.00033973,120]
[359243458,1745860233292,-1000.0,0.00033973,120]
[359243459,1745860233301,-500.0,0.00034,120]
[359243460,1745860233311,-300.0,0.00034,120]
[359243461,1745860233322,-199.57,0.00034,7]
[359243462,1745860233331,-318.80060404,0.00034038,11]
[359243463,1745860233341,-1000.0,0.00034247,120]
[359243464,1745860233350,-218.0,0.000343,2]
[359243465,1745860233359,-1558.23805295,0.00034338,2]